[Event "Titled Tuesday Blitz June 27 Late 2023"]
[White "Maksimovic, Bojan"]
[Black "Estrada Nieto, Julian"]
[WhiteFideId "14408120"]
[BlackFideId "5101018"]
[WhiteElo "2767"]
[BlackElo "2528"]
[Result "1/2-1/2"]
[Round "5"]
[TimeControl "180+2"]
[Date "2023.06.27"]
[WhiteClock "0:00:09"]
[BlackClock "0:00:10"]
[Board "62"]

1. Nf3 {[%clk 0:03:00]}  d5 {[%clk 0:02:30]} 2. g3 {[%clk 0:03:01]}  Nf6 {[%clk 0:02:29]} 3. Bg2 {[%clk 0:03:01]}  c6 {[%clk 0:02:29]} 4. O-O {[%clk 0:03:02]}  Bg4 {[%clk 0:02:29]} 5. c4 {[%clk 0:03:03]}  Nbd7 {[%clk 0:02:29]} 6. cxd5 {[%clk 0:02:59]}  Bxf3 {[%clk 0:02:27]} 7. Bxf3 {[%clk 0:02:49]}  cxd5 {[%clk 0:02:27]} 8. d4 {[%clk 0:02:48]}  e6 {[%clk 0:02:27]} 9. Nc3 {[%clk 0:02:48]}  Be7 {[%clk 0:02:26]} 10. e3 {[%clk 0:02:49]}  O-O {[%clk 0:02:26]} 11. Qb3 {[%clk 0:02:49]}  Qb6 {[%clk 0:02:20]} 12. Qxb6 {[%clk 0:02:39]}  Nxb6 {[%clk 0:02:19]} 13. Be2 {[%clk 0:02:40]}  Rac8 {[%clk 0:02:18]} 14. Rd1 {[%clk 0:02:40]}  a6 {[%clk 0:02:15]} 15. Bd2 {[%clk 0:02:37]}  Nc4 {[%clk 0:02:14]} 16. Be1 {[%clk 0:02:34]}  b5 {[%clk 0:02:04]} 17. Rab1 {[%clk 0:02:09]}  Bb4 {[%clk 0:02:03]} 18. a3 {[%clk 0:02:06]}  Nxa3 {[%clk 0:01:50]} 19. Ra1 {[%clk 0:01:54]}  Nc2 {[%clk 0:01:49]} 20. Rxa6 {[%clk 0:01:55]}  Nxe1 {[%clk 0:01:48]} 21. Rxe1 {[%clk 0:01:54]}  Bxc3 {[%clk 0:01:47]} 22. bxc3 {[%clk 0:01:54]}  Ne4 {[%clk 0:01:37]} 23. Bxb5 {[%clk 0:01:53]}  Nxc3 {[%clk 0:01:37]} 24. Bd3 {[%clk 0:01:53]}  Ra8 {[%clk 0:01:33]} 25. Rea1 {[%clk 0:01:52]}  Rxa6 {[%clk 0:01:33]} 26. Rxa6 {[%clk 0:01:53]}  Rc8 {[%clk 0:01:27]} 27. Kg2 {[%clk 0:01:50]}  g6 {[%clk 0:01:27]} 28. g4 {[%clk 0:01:50]}  h6 {[%clk 0:01:22]} 29. h4 {[%clk 0:01:50]}  Kg7 {[%clk 0:01:22]} 30. Ra7 {[%clk 0:01:50]}  Nd1 {[%clk 0:01:12]} 31. h5 {[%clk 0:01:21]}  gxh5 {[%clk 0:01:08]} 32. gxh5 {[%clk 0:01:22]}  Kf6 {[%clk 0:01:04]} 33. Bb5 {[%clk 0:01:17]}  Nc3 {[%clk 0:01:01]} 34. Bd3 {[%clk 0:01:16]}  Nd1 {[%clk 0:01:00]} 35. Ra1 {[%clk 0:01:17]}  Nc3 {[%clk 0:00:57]} 36. Kf3 {[%clk 0:01:17]}  Rc7 {[%clk 0:00:46]} 37. Kf4 {[%clk 0:01:17]}  Rb7 {[%clk 0:00:42]} 38. f3 {[%clk 0:01:18]}  Rb2 {[%clk 0:00:41]} 39. e4 {[%clk 0:01:17]}  Ne2+ {[%clk 0:00:36]} 40. Ke3 {[%clk 0:01:12]}  Ng3 {[%clk 0:00:35]} 41. e5+ {[%clk 0:01:10]}  Ke7 {[%clk 0:00:28]} 42. Ra7+ {[%clk 0:00:48]}  Kf8 {[%clk 0:00:27]} 43. Ra8+ {[%clk 0:00:32]}  Kg7 {[%clk 0:00:27]} 44. Kf4 {[%clk 0:00:32]}  Nxh5+ {[%clk 0:00:24]} 45. Kg4 {[%clk 0:00:33]}  Rh2 {[%clk 0:00:21]} 46. f4 {[%clk 0:00:33]}  f5+ {[%clk 0:00:19]} 47. exf6+ {[%clk 0:00:34]}  Nxf6+ {[%clk 0:00:19]} 48. Kg3 {[%clk 0:00:34]}  Rd2 {[%clk 0:00:18]} 49. Ra7+ {[%clk 0:00:34]}  Kf8 {[%clk 0:00:17]} 50. Bg6 {[%clk 0:00:35]}  Ne4+ {[%clk 0:00:16]} 51. Kg4 {[%clk 0:00:08]}  Rg2+ {[%clk 0:00:14]} 52. Kh5 {[%clk 0:00:09]}  Rh2+ {[%clk 0:00:13]} 53. Kg4 {[%clk 0:00:09]}  Rg2+ {[%clk 0:00:13]} 54. Kh5 {[%clk 0:00:09]}  Rh2+ {[%clk 0:00:09]} 55. Kg4 {[%clk 0:00:09]}  Rg2+ {[%clk 0:00:10]} 1/2-1/2


[Site "https://www.chess.com"]

[Event "Titled Tuesday Blitz June 27 Late 2023"]
[White "Bryakin, Mikhail"]
[Black "Liu, Casper"]
[WhiteFideId "4165314"]
[BlackFideId "1454153"]
[WhiteElo "2737"]
[BlackElo "2526"]
[Result "0-1"]
[Round "5"]
[TimeControl "180+2"]
[Date "2023.06.27"]
[WhiteClock "0:01:42"]
[BlackClock "0:00:14"]
[Board "63"]

1. e4 {[%clk 0:02:57]}  c5 {[%clk 0:02:15]} 2. d4 {[%clk 0:02:57]}  cxd4 {[%clk 0:02:15]} 3. Qxd4 {[%clk 0:02:58]}  Nc6 {[%clk 0:02:15]} 4. Qd3 {[%clk 0:02:57]}  g6 {[%clk 0:02:16]} 5. Nc3 {[%clk 0:02:56]}  Bg7 {[%clk 0:02:16]} 6. Nf3 {[%clk 0:02:56]}  d6 {[%clk 0:02:16]} 7. Be2 {[%clk 0:02:57]}  Bg4 {[%clk 0:02:17]} 8. O-O {[%clk 0:02:55]}  Nf6 {[%clk 0:02:16]} 9. Bf4 {[%clk 0:02:53]}  O-O {[%clk 0:02:16]} 10. h3 {[%clk 0:02:52]}  Bxf3 {[%clk 0:02:15]} 11. Qxf3 {[%clk 0:02:52]}  Nd7 {[%clk 0:02:15]} 12. Rab1 {[%clk 0:02:47]}  Nd4 {[%clk 0:02:15]} 13. Qe3 {[%clk 0:02:42]}  Nxc2 {[%clk 0:02:15]} 14. Qd2 {[%clk 0:02:39]}  Nd4 {[%clk 0:02:11]} 15. Bd3 {[%clk 0:02:39]}  Ne5 {[%clk 0:02:06]} 16. Be3 {[%clk 0:02:37]}  Nxd3 {[%clk 0:02:04]} 17. Qxd3 {[%clk 0:02:38]}  Nc6 {[%clk 0:02:05]} 18. f4 {[%clk 0:02:38]}  Rc8 {[%clk 0:01:59]} 19. Ne2 {[%clk 0:02:36]}  Qa5 {[%clk 0:01:58]} 20. a3 {[%clk 0:02:34]}  Qa4 {[%clk 0:01:48]} 21. h4 {[%clk 0:02:27]}  h5 {[%clk 0:01:47]} 22. Rf2 {[%clk 0:02:21]}  Na5 {[%clk 0:01:38]} 23. b4 {[%clk 0:02:12]}  Nc4 {[%clk 0:01:32]} 24. Bc1 {[%clk 0:02:12]}  e6 {[%clk 0:00:57]} 25. g4 {[%clk 0:02:08]}  hxg4 {[%clk 0:00:56]} 26. Rh2 {[%clk 0:02:08]}  Nb6 {[%clk 0:00:32]} 27. h5 {[%clk 0:01:50]}  Qc2 {[%clk 0:00:26]} 28. Qxc2 {[%clk 0:01:50]}  Rxc2 {[%clk 0:00:27]} 29. hxg6 {[%clk 0:01:49]}  fxg6 {[%clk 0:00:28]} 30. Ng3 {[%clk 0:01:49]}  Bd4+ {[%clk 0:00:25]} 31. Kh1 {[%clk 0:01:49]}  Rfc8 {[%clk 0:00:15]} 32. Ne2 {[%clk 0:01:49]}  Bf6 {[%clk 0:00:12]} 33. Be3 {[%clk 0:01:48]}  Nc4 {[%clk 0:00:12]} 34. Bxa7 {[%clk 0:01:48]}  Nd2 {[%clk 0:00:12]} 35. Rd1 {[%clk 0:01:46]}  Nxe4 {[%clk 0:00:12]} 36. Rg2 {[%clk 0:01:43]}  Rxe2 {[%clk 0:00:11]} 37. Rxe2 {[%clk 0:01:42]}  Ng3+ {[%clk 0:00:12]} 38. Kg2 {[%clk 0:01:43]}  Nxe2 {[%clk 0:00:13]} 39. Rxd6 {[%clk 0:01:43]}  Nxf4+ {[%clk 0:00:13]} 40. Kg3 {[%clk 0:01:44]}  Be5 {[%clk 0:00:14]} 41. Rxe6 {[%clk 0:01:42]}  Nxe6+ {[%clk 0:00:14]} 0-1


[Site "https://www.chess.com"]

[Event "Titled Tuesday Blitz June 27 Late 2023"]
[White "Daggupati, Balaji"]
[Black "Martinez Reyes, Pedro Ramon"]
[WhiteFideId "2090759"]
[BlackFideId "3901807"]
[WhiteElo "2722"]
[BlackElo "2519"]
[Result "0-1"]
[Round "5"]
[TimeControl "180+2"]
[Date "2023.06.27"]
[WhiteClock "0:00:09"]
[BlackClock "0:00:22"]
[Board "64"]

1. e4 {[%clk 0:03:00]}  Nf6 {[%clk 0:02:52]} 2. e5 {[%clk 0:03:00]}  Nd5 {[%clk 0:02:51]} 3. d4 {[%clk 0:03:01]}  d6 {[%clk 0:02:51]} 4. c4 {[%clk 0:03:00]}  Nb6 {[%clk 0:02:51]} 5. exd6 {[%clk 0:03:01]}  exd6 {[%clk 0:02:50]} 6. Nc3 {[%clk 0:02:59]}  Be7 {[%clk 0:02:50]} 7. Nf3 {[%clk 0:03:00]}  O-O {[%clk 0:02:50]} 8. Be2 {[%clk 0:03:00]}  Bg4 {[%clk 0:02:50]} 9. O-O {[%clk 0:02:59]}  Nc6 {[%clk 0:02:49]} 10. b3 {[%clk 0:02:55]}  Re8 {[%clk 0:02:43]} 11. Be3 {[%clk 0:02:42]}  Bf6 {[%clk 0:02:43]} 12. h3 {[%clk 0:02:42]}  Bh5 {[%clk 0:02:40]} 13. Rc1 {[%clk 0:02:31]}  d5 {[%clk 0:02:38]} 14. c5 {[%clk 0:02:30]}  Nc8 {[%clk 0:02:39]} 15. b4 {[%clk 0:02:27]}  Bxf3 {[%clk 0:02:17]} 16. Bxf3 {[%clk 0:02:27]}  N8e7 {[%clk 0:02:18]} 17. Qb3 {[%clk 0:02:26]}  Bxd4 {[%clk 0:02:10]} 18. Nxd5 {[%clk 0:02:20]}  Bxe3 {[%clk 0:02:02]} 19. fxe3 {[%clk 0:02:21]}  Ne5 {[%clk 0:01:59]} 20. Nxe7+ {[%clk 0:02:18]}  Qxe7 {[%clk 0:01:58]} 21. Bxb7 {[%clk 0:02:19]}  Rab8 {[%clk 0:01:57]} 22. Be4 {[%clk 0:02:11]}  a5 {[%clk 0:01:57]} 23. a3 {[%clk 0:02:11]}  axb4 {[%clk 0:01:58]} 24. axb4 {[%clk 0:02:12]}  Qh4 {[%clk 0:01:45]} 25. Rf4 {[%clk 0:02:03]}  Qe7 {[%clk 0:01:25]} 26. Rcf1 {[%clk 0:02:02]}  Rf8 {[%clk 0:01:26]} 27. Qc3 {[%clk 0:01:55]}  f6 {[%clk 0:01:21]} 28. Rh4 {[%clk 0:01:51]}  g6 {[%clk 0:01:19]} 29. Rhf4 {[%clk 0:01:43]}  Kg7 {[%clk 0:01:17]} 30. Bc2 {[%clk 0:01:43]}  Rbd8 {[%clk 0:01:05]} 31. Rd4 {[%clk 0:01:42]}  Nc6 {[%clk 0:01:03]} 32. Re4 {[%clk 0:01:42]}  Ne5 {[%clk 0:01:03]} 33. b5 {[%clk 0:01:36]}  Rd5 {[%clk 0:01:01]} 34. Bb3 {[%clk 0:01:14]}  Qxc5 {[%clk 0:00:58]} 35. Qa1 {[%clk 0:01:04]}  Rd3 {[%clk 0:00:45]} 36. Rc1 {[%clk 0:00:45]}  Qb6 {[%clk 0:00:38]} 37. Qb1 {[%clk 0:00:33]}  Rxe3 {[%clk 0:00:36]} 38. Rxe3 {[%clk 0:00:34]}  Qxe3+ {[%clk 0:00:35]} 39. Kh1 {[%clk 0:00:34]}  Qb6 {[%clk 0:00:28]} 40. Ba4 {[%clk 0:00:31]}  Rd8 {[%clk 0:00:27]} 41. Qc2 {[%clk 0:00:31]}  Rd7 {[%clk 0:00:25]} 42. Rf1 {[%clk 0:00:23]}  Re7 {[%clk 0:00:21]} 43. Qc3 {[%clk 0:00:21]}  Qd6 {[%clk 0:00:21]} 44. Bc2 {[%clk 0:00:20]}  h5 {[%clk 0:00:20]} 45. Be4 {[%clk 0:00:19]}  Rd7 {[%clk 0:00:20]} 46. Rc1 {[%clk 0:00:19]}  Qd4 {[%clk 0:00:20]} 47. Qxd4 {[%clk 0:00:18]}  Rxd4 {[%clk 0:00:21]} 48. Rxc7+ {[%clk 0:00:18]}  Kh6 {[%clk 0:00:22]} 49. Bc6 {[%clk 0:00:17]}  Rb4 {[%clk 0:00:21]} 50. Be8 {[%clk 0:00:17]}  Kg5 {[%clk 0:00:21]} 51. Rc1 {[%clk 0:00:15]}  Kf4 {[%clk 0:00:21]} 52. Rf1+ {[%clk 0:00:14]}  Kg3 {[%clk 0:00:20]} 53. Ra1 {[%clk 0:00:12]}  f5 {[%clk 0:00:21]} 54. Ra3+ {[%clk 0:00:12]}  Kh4 {[%clk 0:00:21]} 55. Kh2 {[%clk 0:00:13]}  f4 {[%clk 0:00:21]} 56. Ra1 {[%clk 0:00:11]}  g5 {[%clk 0:00:20]} 57. Re1 {[%clk 0:00:10]}  Nd3 {[%clk 0:00:20]} 58. Re4 {[%clk 0:00:10]}  Rxe4 {[%clk 0:00:20]} 59. Bg6 {[%clk 0:00:11]}  Rb4 {[%clk 0:00:20]} 60. Bxd3 {[%clk 0:00:11]}  g4 {[%clk 0:00:21]} 61. hxg4 {[%clk 0:00:10]}  hxg4 {[%clk 0:00:22]} 62. Bf1 {[%clk 0:00:10]}  Rb1 {[%clk 0:00:22]} 63. g3+ {[%clk 0:00:09]}  fxg3+ {[%clk 0:00:22]} 64. Kg2 {[%clk 0:00:09]}  Rc1 {[%clk 0:00:22]} 65. Kg1 {[%clk 0:00:09]}  Rb1 {[%clk 0:00:22]} 66. Kg2 {[%clk 0:00:10]}  Rb2+ {[%clk 0:00:22]} 67. Kg1 {[%clk 0:00:10]}  g2 {[%clk 0:00:23]} 68. Bd3 {[%clk 0:00:09]}  Kg3 {[%clk 0:00:23]} 69. b6 {[%clk 0:00:06]}  Rxb6 {[%clk 0:00:23]} 70. Bb5 {[%clk 0:00:07]}  Rd6 {[%clk 0:00:23]} 71. Bd3 {[%clk 0:00:07]}  Rb6 {[%clk 0:00:23]} 72. Bb5 {[%clk 0:00:08]}  Kf4 {[%clk 0:00:23]} 73. Be2 {[%clk 0:00:07]}  Rb2 {[%clk 0:00:24]} 74. Bd3 {[%clk 0:00:07]}  Kg3 {[%clk 0:00:24]} 75. Bc2 {[%clk 0:00:07]}  Ra2 {[%clk 0:00:24]} 76. Bb1 {[%clk 0:00:07]}  Rb2 {[%clk 0:00:23]} 77. Bc2 {[%clk 0:00:08]}  Kf4 {[%clk 0:00:23]} 78. Bd3 {[%clk 0:00:07]}  Rd2 {[%clk 0:00:24]} 79. Be2 {[%clk 0:00:07]}  Rxe2 {[%clk 0:00:23]} 80. Kh2 {[%clk 0:00:08]}  g1=Q+ {[%clk 0:00:23]} 81. Kxg1 {[%clk 0:00:09]}  Kf3 {[%clk 0:00:24]} 82. Kf1 {[%clk 0:00:09]}  g3 {[%clk 0:00:21]} 83. Kg1 {[%clk 0:00:09]}  Re1# {[%clk 0:00:22]} 0-1


[Site "https://www.chess.com"]

[Event "Titled Tuesday Blitz June 27 Late 2023"]
[White "Troff, Kayden"]
[Black "Bilan, Danila"]
[WhiteFideId "2047896"]
[BlackFideId "24161918"]
[WhiteElo "2719"]
[BlackElo "2515"]
[Result "1-0"]
[Round "5"]
[TimeControl "180+2"]
[Date "2023.06.27"]
[WhiteClock "0:00:13"]
[BlackClock "0:00:00"]
[Board "65"]

1. d4 {[%clk 0:03:00]}  d5 {[%clk 0:02:52]} 2. Nf3 {[%clk 0:03:00]}  Nf6 {[%clk 0:02:52]} 3. Bf4 {[%clk 0:02:58]}  c5 {[%clk 0:02:51]} 4. e3 {[%clk 0:02:58]}  Qb6 {[%clk 0:02:48]} 5. dxc5 {[%clk 0:02:56]}  Qxc5 {[%clk 0:02:47]} 6. Nbd2 {[%clk 0:02:55]}  Bg4 {[%clk 0:02:43]} 7. Be2 {[%clk 0:02:50]}  Nc6 {[%clk 0:02:40]} 8. O-O {[%clk 0:02:46]}  e6 {[%clk 0:02:39]} 9. c4 {[%clk 0:02:40]}  Be7 {[%clk 0:02:24]} 10. cxd5 {[%clk 0:02:35]}  Nxd5 {[%clk 0:02:22]} 11. Rc1 {[%clk 0:02:34]}  Qb4 {[%clk 0:01:44]} 12. Bg3 {[%clk 0:02:25]}  Qxb2 {[%clk 0:01:36]} 13. Rb1 {[%clk 0:02:07]}  Qxa2 {[%clk 0:01:23]} 14. Bc4 {[%clk 0:01:58]}  Qa5 {[%clk 0:01:18]} 15. Rxb7 {[%clk 0:01:56]}  O-O {[%clk 0:01:10]} 16. Nb3 {[%clk 0:01:14]}  Qd8 {[%clk 0:01:04]} 17. e4 {[%clk 0:01:06]}  Nb6 {[%clk 0:00:51]} 18. Bb5 {[%clk 0:01:02]}  Nb4 {[%clk 0:00:17]} 19. Qb1 {[%clk 0:00:53]}  Bxf3 {[%clk 0:00:13]} 20. gxf3 {[%clk 0:00:54]}  Bd6 {[%clk 0:00:09]} 21. Rd1 {[%clk 0:00:45]}  Qc8 {[%clk 0:00:09]} 22. Na5 {[%clk 0:00:45]}  Bxg3 {[%clk 0:00:09]} 23. hxg3 {[%clk 0:00:41]}  Qc5 {[%clk 0:00:08]} 24. Bf1 {[%clk 0:00:18]}  Qxa5 {[%clk 0:00:08]} 25. Qb2 {[%clk 0:00:19]}  Rab8 {[%clk 0:00:06]} 26. Ra1 {[%clk 0:00:18]}  Qxa1 {[%clk 0:00:05]} 27. Qxa1 {[%clk 0:00:17]}  Rxb7 {[%clk 0:00:06]} 28. Qc3 {[%clk 0:00:16]}  Na8 {[%clk 0:00:05]} 29. e5 {[%clk 0:00:15]}  Rfb8 {[%clk 0:00:05]} 30. f4 {[%clk 0:00:14]}  Rb6 {[%clk 0:00:04]} 31. Bg2 {[%clk 0:00:14]}  g6 {[%clk 0:00:04]} 32. g4 {[%clk 0:00:15]}  Nd5 {[%clk 0:00:02]} 33. Bxd5 {[%clk 0:00:15]}  exd5 {[%clk 0:00:03]} 34. f5 {[%clk 0:00:16]}  gxf5 {[%clk 0:00:03]} 35. gxf5 {[%clk 0:00:16]}  Kf8 {[%clk 0:00:04]} 36. Qc5+ {[%clk 0:00:14]}  Ke8 {[%clk 0:00:04]} 37. Qxd5 {[%clk 0:00:15]}  Nc7 {[%clk 0:00:03]} 38. Qg2 {[%clk 0:00:13]}  Ke7 {[%clk 0:00:03]} 39. Qg5+ {[%clk 0:00:13]}  Kd7 {[%clk 0:00:03]} 40. Qg7 {[%clk 0:00:13]}  Ke7 {[%clk 0:00:03]} 41. e6 {[%clk 0:00:14]}  Nxe6 {[%clk 0:00:03]} 42. fxe6 {[%clk 0:00:14]}  Rxe6 {[%clk 0:00:04]} 43. Qg5+ {[%clk 0:00:14]}  f6 {[%clk 0:00:03]} 44. Qc5+ {[%clk 0:00:14]}  Kd7 {[%clk 0:00:03]} 45. Qxa7+ {[%clk 0:00:13]}  Kc8 {[%clk 0:00:03]} 46. Qxh7 {[%clk 0:00:13]}  Rc6 {[%clk 0:00:03]} 47. Qf5+ {[%clk 0:00:12]}  Kc7 {[%clk 0:00:03]} 48. Kg2 {[%clk 0:00:12]}  Rbb6 {[%clk 0:00:03]} 49. Qh7+ {[%clk 0:00:12]}  Kd6 {[%clk 0:00:03]} 50. Qf7 {[%clk 0:00:12]}  Kc5 {[%clk 0:00:03]} 51. Qe7+ {[%clk 0:00:12]}  Rd6 {[%clk 0:00:04]} 52. Qc7+ {[%clk 0:00:12]}  Rbc6 {[%clk 0:00:05]} 53. Qa5+ {[%clk 0:00:12]}  Kd4 {[%clk 0:00:05]} 54. Kf3 {[%clk 0:00:13]}  Rc5 {[%clk 0:00:03]} 55. Qd2+ {[%clk 0:00:12]}  Ke5 {[%clk 0:00:00]} 56. Qe3+ {[%clk 0:00:13]} 1-0


[Site "https://www.chess.com"]

[Event "Titled Tuesday Blitz June 27 Late 2023"]
[White "Graif, William"]
[Black "Fernandez, Daniel"]
[WhiteFideId "2609835"]
[BlackFideId "2015390"]
[WhiteElo "2513"]
[BlackElo "2700"]
[Result "0-1"]
[Round "5"]
[TimeControl "180+2"]
[Date "2023.06.27"]
[WhiteClock "0:00:00"]
[BlackClock "0:01:45"]
[Board "67"]

1. e4 {[%clk 0:02:59]}  c5 {[%clk 0:02:59]} 2. Nc3 {[%clk 0:02:57]}  Nc6 {[%clk 0:02:58]} 3. Bb5 {[%clk 0:02:56]}  Nd4 {[%clk 0:02:58]} 4. Nf3 {[%clk 0:02:54]}  e6 {[%clk 0:02:56]} 5. O-O {[%clk 0:02:53]}  Ne7 {[%clk 0:02:55]} 6. Nxd4 {[%clk 0:02:48]}  cxd4 {[%clk 0:02:54]} 7. Ne2 {[%clk 0:02:49]}  a6 {[%clk 0:02:54]} 8. Bd3 {[%clk 0:02:36]}  Nc6 {[%clk 0:02:53]} 9. c3 {[%clk 0:02:36]}  dxc3 {[%clk 0:02:51]} 10. dxc3 {[%clk 0:02:31]}  d5 {[%clk 0:02:50]} 11. exd5 {[%clk 0:01:40]}  Qxd5 {[%clk 0:02:48]} 12. c4 {[%clk 0:01:25]}  Qd8 {[%clk 0:02:37]} 13. Be4 {[%clk 0:01:17]}  Qxd1 {[%clk 0:02:35]} 14. Rxd1 {[%clk 0:01:17]}  Bd7 {[%clk 0:02:33]} 15. b3 {[%clk 0:00:57]}  Be7 {[%clk 0:02:28]} 16. Bb2 {[%clk 0:00:55]}  Bf6 {[%clk 0:02:28]} 17. Bxf6 {[%clk 0:00:51]}  gxf6 {[%clk 0:02:27]} 18. g3 {[%clk 0:00:49]}  Ke7 {[%clk 0:02:27]} 19. c5 {[%clk 0:00:38]}  f5 {[%clk 0:02:25]} 20. Bg2 {[%clk 0:00:38]}  a5 {[%clk 0:02:22]} 21. Nc3 {[%clk 0:00:29]}  h5 {[%clk 0:02:05]} 22. Nb5 {[%clk 0:00:23]}  a4 {[%clk 0:02:03]} 23. Nd6 {[%clk 0:00:20]}  axb3 {[%clk 0:02:00]} 24. axb3 {[%clk 0:00:20]}  Rxa1 {[%clk 0:02:00]} 25. Rxa1 {[%clk 0:00:20]}  b6 {[%clk 0:02:00]} 26. Bxc6 {[%clk 0:00:13]}  Bxc6 {[%clk 0:01:59]} 27. Ra7+ {[%clk 0:00:14]}  Kf6 {[%clk 0:01:58]} 28. Rxf7+ {[%clk 0:00:11]}  Kg6 {[%clk 0:01:51]} 29. Rc7 {[%clk 0:00:07]}  Bf3 {[%clk 0:01:46]} 30. cxb6 {[%clk 0:00:06]}  Rd8 {[%clk 0:01:46]} 31. b7 {[%clk 0:00:00]}  Rxd6 {[%clk 0:01:45]} 0-1


[Site "https://www.chess.com"]

[Event "Titled Tuesday Blitz June 27 Late 2023"]
[White "Darini, Pouria"]
[Black "Koc, Przemyslaw"]
[WhiteFideId "12502200"]
[BlackFideId "1109081"]
[WhiteElo "2699"]
[BlackElo "2511"]
[Result "1-0"]
[Round "5"]
[TimeControl "180+2"]
[Date "2023.06.27"]
[WhiteClock "0:00:58"]
[BlackClock "0:01:08"]
[Board "68"]

1. d4 {[%clk 0:02:59]}  d6 {[%clk 0:02:59]} 2. Bf4 {[%clk 0:03:00]}  f5 {[%clk 0:02:56]} 3. Nc3 {[%clk 0:02:59]}  Nf6 {[%clk 0:02:57]} 4. Bg5 {[%clk 0:02:58]}  g6 {[%clk 0:02:53]} 5. Bxf6 {[%clk 0:02:58]}  exf6 {[%clk 0:02:54]} 6. e3 {[%clk 0:02:57]}  Bg7 {[%clk 0:02:54]} 7. Bc4 {[%clk 0:02:57]}  c6 {[%clk 0:02:53]} 8. d5 {[%clk 0:02:50]}  c5 {[%clk 0:02:53]} 9. Bb5+ {[%clk 0:02:50]}  Nd7 {[%clk 0:02:53]} 10. h4 {[%clk 0:02:48]}  h5 {[%clk 0:02:52]} 11. Nh3 {[%clk 0:02:47]}  O-O {[%clk 0:02:50]} 12. Nf4 {[%clk 0:02:44]}  Ne5 {[%clk 0:02:50]} 13. a4 {[%clk 0:02:44]}  a6 {[%clk 0:02:44]} 14. Be2 {[%clk 0:02:45]}  Bh6 {[%clk 0:02:39]} 15. g3 {[%clk 0:02:41]}  Kh7 {[%clk 0:02:36]} 16. Nb1 {[%clk 0:02:40]}  Bd7 {[%clk 0:02:32]} 17. Nd2 {[%clk 0:02:33]}  b5 {[%clk 0:02:29]} 18. O-O {[%clk 0:02:07]}  bxa4 {[%clk 0:02:25]} 19. Nc4 {[%clk 0:02:04]}  Qc7 {[%clk 0:02:19]} 20. Ne6 {[%clk 0:01:55]}  Bxe6 {[%clk 0:02:18]} 21. dxe6 {[%clk 0:01:55]}  Nxc4 {[%clk 0:02:18]} 22. Bxc4 {[%clk 0:01:55]}  Rab8 {[%clk 0:02:15]} 23. Rxa4 {[%clk 0:01:55]}  Rxb2 {[%clk 0:02:11]} 24. Bb3 {[%clk 0:01:54]}  Rb8 {[%clk 0:01:59]} 25. Qa1 {[%clk 0:01:38]}  R2xb3 {[%clk 0:01:49]} 26. cxb3 {[%clk 0:01:39]}  Rxb3 {[%clk 0:01:48]} 27. Rxa6 {[%clk 0:01:39]}  Rb7 {[%clk 0:01:48]} 28. Rd1 {[%clk 0:01:32]}  Bf8 {[%clk 0:01:37]} 29. Rb1 {[%clk 0:00:59]}  Rxb1+ {[%clk 0:01:34]} 30. Qxb1 {[%clk 0:00:59]}  c4 {[%clk 0:01:24]} 31. Qa1 {[%clk 0:00:59]}  Be7 {[%clk 0:01:16]} 32. Ra7 {[%clk 0:00:59]}  Qd8 {[%clk 0:01:08]} 33. Qxf6 {[%clk 0:00:58]} 1-0


[Site "https://www.chess.com"]

[Event "Titled Tuesday Blitz June 27 Late 2023"]
[White "Womacka, Mathias"]
[Black "Boyer, Mahel"]
[WhiteFideId "4611390"]
[BlackFideId "45102422"]
[WhiteElo "2505"]
[BlackElo "2685"]
[Result "0-1"]
[Round "5"]
[TimeControl "180+2"]
[Date "2023.06.27"]
[WhiteClock "0:01:39"]
[BlackClock "0:02:51"]
[Board "70"]

1. e4 {[%clk 0:03:00]}  Nc6 {[%clk 0:02:50]} 2. Nf3 {[%clk 0:02:59]}  d5 {[%clk 0:02:50]} 3. exd5 {[%clk 0:02:56]}  Qxd5 {[%clk 0:02:51]} 4. Nc3 {[%clk 0:02:55]}  Qh5 {[%clk 0:02:52]} 5. Be2 {[%clk 0:02:50]}  Bg4 {[%clk 0:02:52]} 6. h3 {[%clk 0:02:48]}  O-O-O {[%clk 0:02:53]} 7. O-O {[%clk 0:02:46]}  Bxh3 {[%clk 0:02:53]} 8. gxh3 {[%clk 0:02:45]}  Qxh3 {[%clk 0:02:53]} 9. Nh2 {[%clk 0:02:43]}  e6 {[%clk 0:02:53]} 10. Bf3 {[%clk 0:02:33]}  Bd6 {[%clk 0:02:53]} 11. Ng4 {[%clk 0:02:10]}  h5 {[%clk 0:02:52]} 12. Bg2 {[%clk 0:02:01]}  Qxg4 {[%clk 0:02:51]} 13. Qxg4 {[%clk 0:02:00]}  hxg4 {[%clk 0:02:52]} 14. Re1 {[%clk 0:01:39]}  Nd4 {[%clk 0:02:51]} 0-1


[Site "https://www.chess.com"]

[Event "Titled Tuesday Blitz June 27 Late 2023"]
[White "Prestia, Paris"]
[Black "ArchibaldCerveza29"]
[WhiteFideId "30925959"]
[WhiteElo "2670"]
[BlackElo "2504"]
[Result "0-1"]
[Round "5"]
[TimeControl "180+2"]
[Date "2023.06.27"]
[WhiteClock "0:00:04"]
[BlackClock "0:00:53"]
[Board "71"]

1. d4 {[%clk 0:03:00]}  d5 {[%clk 0:03:00]} 2. c4 {[%clk 0:03:01]}  e6 {[%clk 0:02:59]} 3. Nc3 {[%clk 0:03:00]}  f5 {[%clk 0:02:59]} 4. Nf3 {[%clk 0:02:59]}  Nf6 {[%clk 0:02:59]} 5. Bg5 {[%clk 0:02:51]}  c6 {[%clk 0:02:57]} 6. e3 {[%clk 0:02:49]}  Be7 {[%clk 0:02:53]} 7. Ne5 {[%clk 0:02:49]}  O-O {[%clk 0:02:51]} 8. Bd3 {[%clk 0:02:44]}  Nbd7 {[%clk 0:02:50]} 9. f4 {[%clk 0:02:43]}  Ne4 {[%clk 0:02:42]} 10. Bxe7 {[%clk 0:02:41]}  Qxe7 {[%clk 0:02:43]} 11. Bxe4 {[%clk 0:02:41]}  fxe4 {[%clk 0:02:43]} 12. O-O {[%clk 0:02:38]}  Nxe5 {[%clk 0:02:36]} 13. fxe5 {[%clk 0:02:39]}  Bd7 {[%clk 0:02:36]} 14. c5 {[%clk 0:02:37]}  Be8 {[%clk 0:02:29]} 15. b4 {[%clk 0:02:36]}  a6 {[%clk 0:02:28]} 16. Rxf8+ {[%clk 0:02:33]}  Kxf8 {[%clk 0:02:27]} 17. Qe2 {[%clk 0:02:30]}  Qg5 {[%clk 0:02:25]} 18. Rf1+ {[%clk 0:02:13]}  Kg8 {[%clk 0:02:23]} 19. Qf2 {[%clk 0:02:05]}  Bh5 {[%clk 0:02:19]} 20. a4 {[%clk 0:02:04]}  h6 {[%clk 0:02:09]} 21. h3 {[%clk 0:02:03]}  Bf3 {[%clk 0:02:02]} 22. Kh2 {[%clk 0:01:26]}  Bh5 {[%clk 0:01:54]} 23. Qf4 {[%clk 0:01:23]}  Qxf4+ {[%clk 0:01:51]} 24. exf4 {[%clk 0:01:19]}  Rf8 {[%clk 0:01:44]} 25. g4 {[%clk 0:01:19]}  Be8 {[%clk 0:01:40]} 26. Kg3 {[%clk 0:01:17]}  Bd7 {[%clk 0:01:40]} 27. Nd1 {[%clk 0:01:09]}  g5 {[%clk 0:01:39]} 28. Ne3 {[%clk 0:01:10]}  gxf4+ {[%clk 0:01:38]} 29. Rxf4 {[%clk 0:01:10]}  Rxf4 {[%clk 0:01:35]} 30. Kxf4 {[%clk 0:01:11]}  Kg7 {[%clk 0:01:35]} 31. g5 {[%clk 0:01:04]}  h5 {[%clk 0:01:05]} 32. Kg3 {[%clk 0:00:56]}  Kg6 {[%clk 0:01:05]} 33. Kh4 {[%clk 0:00:57]}  Be8 {[%clk 0:01:06]} 34. Nf1 {[%clk 0:00:31]}  Kf5 {[%clk 0:01:06]} 35. Ng3+ {[%clk 0:00:31]}  Kf4 {[%clk 0:01:06]} 36. Nxh5+ {[%clk 0:00:32]}  Kf3 {[%clk 0:01:06]} 37. Ng3 {[%clk 0:00:10]}  e3 {[%clk 0:01:05]} 38. a5 {[%clk 0:00:06]}  Bg6 {[%clk 0:01:04]} 39. Nf1 {[%clk 0:00:05]}  e2 {[%clk 0:01:03]} 40. Nh2+ {[%clk 0:00:06]}  Kg2 {[%clk 0:01:01]} 41. Ng4 {[%clk 0:00:04]}  e1=Q+ {[%clk 0:00:55]} 42. Nf2 {[%clk 0:00:03]}  Qxf2+ {[%clk 0:00:55]} 43. Kg4 {[%clk 0:00:04]}  Qg3# {[%clk 0:00:53]} 0-1


[Site "https://www.chess.com"]